bitfinex/quotes_SOLUSD_20230103
["timestamp","ask_amount","ask_price","bid_price","bid_amount"]
[1672710708650,67.61,11.107,11.099,40.0]
[1672710709048,78.13164276,11.108,11.099,40.0]
[1672710709692,40.0,11.107,11.098,109.822]
[1672710709904,67.62,11.106,11.099,40.0]
[1672710710228,67.61,11.107,11.099,40.0]
[1672710710422,10.52164276,11.108,11.099,40.0]
[1672710711273,67.61,11.107,11.099,40.0]
[1672710711695,67.61,11.107,11.098,133.3962]
[1672710712019,67.61,11.107,11.099,40.0]
[1672710713045,10.50581244,11.106,11.099,40.0]
[1672710713804,67.6,11.109,11.099,40.0]
[1672710713996,67.6,11.109,11.099,39.5]
[1672710716225,131.30182096,11.109,11.099,39.5]
[1672710716845,10.52164276,11.108,11.099,39.5]
[1672710717174,67.61,11.107,11.099,39.5]
[1672710717880,10.52164276,11.108,11.099,39.5]
[1672710718305,10.52164276,11.108,11.101,40.0]
[1672710718511,10.52164276,11.108,11.102,67.64]
[1672710718722,67.54,11.119,11.103,40.0]
[1672710718937,10.51372831,11.107,11.105,40.0]
[1672710719151,67.54,11.119,11.107,10.50997169]
[1672710719580,40.0,11.118,11.107,10.50997169]
[1672710719901,67.55,11.117,11.107,10.50997169]
[1672710723661,67.54,11.119,11.107,10.50997169]
[1672710723896,40.0,11.118,11.107,168.03637169]
[1672710724101,67.55,11.117,11.107,168.03637169]
[1672710724926,40.0,11.118,11.108,40.0]
[1672710725251,67.55,11.117,11.108,40.0]
[1672710725471,67.54,11.119,11.108,40.0]
[1672710725781,67.54,11.119,11.108,197.7556]
[1672710729360,67.53,11.12,11.108,265.3656]
[1672710729565,67.53,11.121,11.109,113.8683]
[1672710729755,67.53,11.121,11.111,40.0]
[1672710730407,163.0054,11.122,11.111,123.39730786]
[1672710730624,40.0,11.137,11.111,123.39730786]
[1672710730803,8.22,11.13,11.112,47.4352]
[1672710731019,53.82591292,11.13,11.113,268.8835]
[1672710731228,67.48,11.129,11.113,268.8835]
[1672710731651,67.48,11.129,11.115,40.0]
[1672710731877,67.48,11.129,11.117,40.0]
[1672710732088,67.48,11.129,11.116,230.9768]
[1672710732286,40.0,11.128,11.113,15.80730786]
[1672710732490,40.0,11.128,11.111,40.0]
[1672710732491,8.23,11.12,11.112,163.4168]
[1672710732703,67.54,11.119,11.112,163.4168]
[1672710733244,8.23,11.12,11.113,40.0]
[1672710733563,67.51,11.123,11.113,40.0]
[1672710740283,67.51,11.123,11.112,164.8152]
[1672710740284,8.21,11.12,11.112,164.8152]
[1672710740497,67.54,11.119,11.112,164.8152]
[1672710743862,67.53,11.12,11.112,164.8152]
[1672710745022,67.53,11.12,11.113,40.0]
[1672710745242,90.5449,11.121,11.113,40.0]
[1672710746388,90.5449,11.121,11.106,67.62]
[1672710746697,40.0,11.119,11.102,165.508]
[1672710746890,8.21,11.11,11.102,165.508]
[1672710747221,67.6,11.109,11.102,165.508]
[1672710747642,67.59,11.111,11.098,23.7811]
[1672710747851,40.0,11.11,11.1,40.0]
[1672710748168,67.6,11.109,11.1,40.0]
[1672710750161,40.0,11.11,11.1,40.0]
[1672710750373,67.6,11.109,11.1,40.0]
[1672710751212,67.59,11.111,11.1,40.0]
[1672710751425,67.59,11.111,11.1,152.0374]
[1672710752163,134.57345429,11.111,11.1,112.0374]
[1672710752381,48.21,11.11,11.1,112.0374]
[1672710752594,67.6,11.109,11.1,112.0374]
[1672710752780,40.0,11.108,11.1,112.0374]
[1672710753113,40.0,11.106,11.1,112.0374]
[1672710753329,40.0,11.106,11.099,45.8111]
[1672710753640,40.0,11.106,11.095,57.4546643]
[1672710753831,67.62,11.105,11.095,57.4546643]
[1672710754038,163.22876541,11.105,11.095,57.4546643]
[1672710754253,61.3613002,11.104,11.095,57.4546643]
[1672710754560,40.0,11.102,11.095,57.4546643]
[1672710754772,67.65,11.101,11.095,57.4546643]
[1672710755188,40.0,11.1,11.095,57.4546643]
[1672710755399,67.66,11.099,11.095,57.4546643]
[1672710755822,107.65,11.1,11.095,57.4546643]
[1672710757011,40.0,11.109,11.095,57.4546643]
[1672710757317,40.0,11.109,11.096,40.0]
[1672710757525,40.0,11.109,11.096,150.9947]
[1672710757719,67.61,11.108,11.096,150.9947]
[1672710758678,40.0,11.107,11.096,150.9947]
[1672710758894,67.62,11.106,11.096,150.9947]
[1672710759288,40.0,11.107,11.096,150.9947]
[1672710759528,40.0,11.107,11.095,57.4546643]
[1672710759728,40.0,11.105,11.095,57.4546643]
[1672710759919,40.0,11.103,11.095,57.4546643]
[1672710760129,67.64,11.102,11.095,57.4546643]
[1672710761732,95.1283722,11.107,11.096,40.0]
[1672710761733,40.0,11.107,11.096,40.0]
[1672710761923,87.2232,11.107,11.096,40.0]
[1672710762123,40.0,11.107,11.096,40.0]
[1672710762340,67.62,11.106,11.096,40.0]
[1672710765636,40.0,11.107,11.096,40.0]
[1672710766169,81.44,11.11,11.096,40.0]
[1672710766390,48.32,11.11,11.096,40.0]
[1672710767119,67.61,11.108,11.096,154.9492]
[1672710769204,67.6,11.109,11.096,170.75650786]
[1672710769419,71.8065,11.112,11.098,40.0]
[1672710769630,71.8065,11.112,11.099,67.66]
[1672710769850,40.0,11.111,11.1,40.0]
[1672710770162,114.7113,11.112,11.1,40.0]
[1672710770886,114.7113,11.112,11.1,156.3281]
[1672710772053,40.0,11.111,11.1,156.3281]
[1672710773087,114.7113,11.112,11.1,156.3281]
[1672710773513,40.0,11.111,11.1,116.3281]
[1672710773720,40.0,11.109,11.1,116.3281]
[1672710774356,67.61,11.108,11.1,116.3281]
[1672710775636,67.61,11.108,11.101,40.0]
[1672710775847,67.59,11.11,11.101,40.0]
[1672710777207,67.59,11.11,11.091,40.0]
[1672710777426,40.0,11.109,11.095,57.4546643]
[1672710777619,40.0,11.107,11.095,57.4546643]
[1672710777826,67.62,11.106,11.095,57.4546643]
[1672710778034,40.0,11.105,11.095,57.4546643]
[1672710778241,40.0,11.103,11.095,57.4546643]
[1672710778454,67.64,11.102,11.095,57.4546643]
[1672710782156,67.63,11.104,11.095,57.4546643]
[1672710783427,40.0,11.103,11.095,57.4546643]
[1672710783729,40.0,11.101,11.095,57.4546643]
[1672710784041,8.21,11.11,11.096,40.0]
[1672710784242,8.21,11.11,11.096,87.8924]
[1672710784666,67.6,11.109,11.096,87.8924]
[1672710784882,67.6,11.109,11.097,114.8635]
[1672710785081,67.6,11.109,11.098,40.0]
[1672710787075,55.36781992,11.11,11.1,8.25]
[1672710787414,55.36781992,11.11,11.102,40.0]
[1672710787615,8.21,11.12,11.103,67.64]
[1672710787808,67.54,11.119,11.104,40.0]
[1672710788013,67.54,11.119,11.105,176.1787]
[1672710788254,67.54,11.119,11.106,40.0]
[1672710788457,40.0,11.118,11.106,40.0]
[1672710788652,67.55,11.117,11.106,148.5587]
[1672710789298,40.0,11.118,11.106,148.5587]
[1672710789509,67.55,11.117,11.108,40.0]
[1672710790126,161.0816,11.122,11.108,40.0]
[1672710790339,161.0816,11.122,11.109,67.6]
[1672710790546,161.0816,11.122,11.11,40.0]
[1672710790757,67.53,11.121,11.11,40.0]
[1672710792040,46.1434,11.122,11.11,40.0]
[1672710792227,46.1434,11.122,11.11,107.59]
[1672710792434,8.23,11.13,11.111,15.80730786]
[1672710792649,8.23,11.13,11.113,40.0]
[1672710792875,8.23,11.13,11.114,186.6085]
[1672710793084,67.48,11.129,11.115,40.0]
[1672710793295,67.48,11.129,11.113,23.9695]
[1672710793507,40.0,11.128,11.113,23.9695]
[1672710793823,40.0,11.126,11.113,23.9695]
[1672710794012,40.0,11.124,11.113,23.9695]
[1672710794216,67.51,11.123,11.113,23.9695]
[1672710795583,8.23,11.12,11.113,23.9695]
[1672710795802,67.54,11.119,11.111,109.8148]
[1672710796768,67.54,11.119,11.112,40.0]
[1672710797707,8.23,11.12,11.112,40.0]
[1672710798106,67.54,11.119,11.108,40.0]
[1672710798321,67.54,11.119,11.107,40.0]
[1672710798964,40.0,11.118,11.107,40.0]
[1672710799172,67.55,11.117,11.107,40.0]
[1672710801279,67.54,11.119,11.107,40.0]
[1672710801477,67.54,11.119,11.107,158.7745]
[1672710802524,67.54,11.119,11.102,40.0]
[1672710802525,126.58761136,11.119,11.102,40.0]
[1672710802734,40.0,11.118,11.104,40.0]
[1672710802952,67.55,11.117,11.104,40.0]
[1672710803682,40.0,11.118,11.104,148.4177]
[1672710803893,63.22574657,11.12,11.106,40.0]
[1672710803894,67.55,11.117,11.106,40.0]
[1672710804213,67.54,11.119,11.106,40.0]
[1672710804433,67.54,11.119,11.108,40.0]
[1672710805253,67.54,11.119,11.108,148.4177]
[1672710805698,40.0,11.118,11.106,40.0]
[1672710805890,67.55,11.117,11.106,40.0]
[1672710807387,48.21,11.12,11.106,40.0]
[1672710807388,67.54,11.119,11.106,40.0]
[1672710807575,67.54,11.119,11.108,40.0]
[1672710808203,67.54,11.119,11.108,155.5729]
[1672710811045,67.54,11.119,11.108,115.5729]
[1672710811485,67.54,11.119,11.109,40.0]
[1672710814103,67.54,11.119,11.104,40.0]
[1672710814950,67.54,11.119,11.104,107.63]
[1672710815679,67.54,11.119,11.106,40.0]
[1672710815891,67.54,11.119,11.108,40.0]
[1672710816524,67.54,11.119,11.098,107.67]
[1672710816525,126.37955793,11.118,11.098,107.67]
[1672710816739,126.37955793,11.118,11.101,116.437]
[1672710816740,8.21,11.11,11.101,116.437]
[1672710816955,67.6,11.109,11.101,116.437]
[1672710817582,67.6,11.109,11.098,40.0]
[1672710817795,67.6,11.109,11.098,156.437]
[1672710819160,48.21,11.12,11.1,8.28]
[1672710819377,48.21,11.12,11.102,40.0]
[1672710819696,48.21,11.12,11.104,40.0]
[1672710819893,67.54,11.119,11.105,110.9349]
[1672710820102,67.54,11.119,11.106,40.0]
[1672710820312,40.0,11.118,11.102,40.0]
[1672710820644,40.0,11.116,11.102,40.0]
[1672710820829,67.56,11.115,11.102,40.0]
[1672710821046,40.0,11.114,11.102,40.0]
[1672710821256,8.21,11.11,11.101,110.9349]
[1672710821589,67.6,11.109,11.101,110.9349]
[1672710821980,67.6,11.109,11.097,40.0]
[1672710822305,67.6,11.109,11.098,148.3298]
[1672710823481,67.6,11.109,11.095,57.4546643]
[1672710823691,40.0,11.108,11.095,57.4546643]
[1672710824008,40.0,11.106,11.095,57.4546643]
[1672710824208,67.62,11.105,11.096,40.0]
[1672710824611,67.62,11.105,11.095,57.4546643]
[1672710825039,40.0,11.104,11.095,57.4546643]
[1672710825257,67.64,11.103,11.095,57.4546643]
[1672710825884,64.06975403,11.107,11.095,57.4546643]
[1672710826212,210.11994657,11.109,11.096,40.0]
[1672710826632,40.0,11.107,11.096,40.0]
[1672710826838,67.62,11.106,11.096,40.0]
[1672710831659,40.0,11.107,11.096,40.0]
[1672710831973,67.62,11.106,11.096,40.0]
[1672710833549,67.61,11.108,11.096,40.0]
[1672710834747,40.0,11.107,11.096,40.0]
[1672710835053,67.62,11.106,11.096,40.0]
[1672710835683,40.0,11.105,11.095,170.9942643]
[1672710835895,67.63,11.104,11.095,170.9942643]
[1672710836211,67.63,11.104,11.096,40.0]
[1672710838204,67.63,11.104,11.095,170.9942643]
[1672710838827,67.63,11.104,11.096,40.0]
[1672710839154,67.62,11.106,11.096,40.0]
[1672710841352,67.62,11.106,11.095,57.4546643]
[1672710841570,40.0,11.105,11.095,57.4546643]
[1672710841775,67.63,11.104,11.095,57.4546643]
[1672710845140,40.0,11.103,11.095,57.4546643]
[1672710845357,67.64,11.102,11.095,57.4546643]
[1672710845767,40.0,11.101,11.095,57.4546643]
[1672710845977,67.65,11.1,11.095,57.4546643]
[1672710846724,67.64,11.102,11.095,57.4546643]
[1672710849425,40.0,11.101,11.095,21.3549913]
[1672710849635,67.65,11.1,11.095,21.3549913]
[1672710849985,40.0,11.099,11.095,21.3549913]
[1672710850172,67.67,11.098,11.095,21.3549913]
[1672710850384,40.0,11.097,11.095,21.3549913]
[1672710850597,67.68,11.096,11.095,21.3549913]
[1672710851741,67.67,11.098,11.095,21.3549913]
[1672710852387,40.0,11.097,11.095,21.3549913]
[1672710852803,67.68,11.096,11.095,21.3549913]
[1672710853424,67.68,11.096,11.095,0.0049913]
[1672710853636,67.68,11.096,11.094,36.104207]
[1672710853637,40.0,11.095,11.094,0.0091983]
[1672710853851,107.68,11.095,11.081,113.8711]
[1672710854067,41.37,11.09,11.081,108.8711]
[1672710854265,67.72,11.089,11.081,108.8711]
[1672710854470,40.0,11.088,11.081,145.00901]
[1672710854690,40.0,11.088,11.081,36.13791]
[1672710855756,49.88309228,11.087,11.08,0.0109902]
[1672710855976,100.12192323,11.081,11.062,35.3588689]
[1672710856160,41.23,11.07,11.062,35.3588689]
[1672710856370,40.0,11.068,11.062,35.3588689]
[1672710856693,67.86,11.067,11.062,35.3588689]
[1672710856901,74.10718947,11.07,11.062,35.3588689]
[1672710856902,202.54028782,11.069,11.062,35.3588689]
[1672710857116,131.82401323,11.069,11.062,0.3588689]
[1672710857335,40.0,11.078,11.062,0.3588689]
[1672710857527,67.79,11.077,11.062,0.3588689]
[1672710857947,81.53,11.09,11.063,83.68730786]
[1672710858152,24.67790464,11.088,11.063,100.37494786]
[1672710858362,24.67790464,11.088,11.065,40.0]
[1672710858579,75.55399845,11.087,11.066,178.9912]
[1672710858895,75.55399845,11.087,11.07,8.25]
[1672710858896,67.73,11.087,11.07,8.25]
[1672710859222,67.72,11.089,11.072,40.0]
[1672710859534,67.72,11.089,11.073,67.82]
[1672710859759,67.72,11.089,11.074,40.0]
[1672710860150,67.7,11.092,11.075,67.81]
[1672710860369,67.68,11.096,11.076,40.0]
[1672710860578,67.68,11.096,11.077,67.79]
[1672710860983,67.68,11.096,11.078,40.0]
[1672710861197,40.0,11.094,11.078,155.4459]
[1672710861426,67.7,11.093,11.078,155.4459]
[1672710861655,40.0,11.091,11.08,40.0]
[1672710861835,67.72,11.09,11.079,115.4459]
[1672710862257,40.0,11.089,11.079,115.4459]
[1672710862477,67.73,11.088,11.071,67.83]
[1672710862678,40.0,11.087,11.071,115.4459]
[1672710862892,40.0,11.085,11.071,115.4459]
[1672710863118,67.75,11.084,11.071,115.4459]
[1672710863304,40.0,11.083,11.071,115.4459]
[1672710863515,67.76,11.082,11.071,115.4459]
[1672710863943,40.0,11.081,11.071,115.4459]
[1672710864155,67.78,11.08,11.071,115.4459]
[1672710864375,40.0,11.079,11.067,40.0]
[1672710864584,67.79,11.078,11.067,150.1723]
[1672710865092,67.78,11.08,11.067,150.1723]
[1672710865302,182.3608,11.081,11.067,150.1723]
[1672710865633,182.3608,11.081,11.069,40.0]
[1672710866031,182.3608,11.081,11.069,150.1723]
[1672710867636,114.5908,11.081,11.069,150.1723]
[1672710868681,67.74,11.086,11.071,40.0]
[1672710868882,67.72,11.089,11.073,40.0]
[1672710869095,67.72,11.09,11.075,40.0]
[1672710869288,67.72,11.09,11.076,113.3456]
[1672710869496,67.72,11.09,11.077,40.0]
[1672710870151,113.0947,11.092,11.078,67.79]
[1672710870364,100.5947,11.092,11.079,40.0]
[1672710870553,100.5947,11.092,11.079,151.7207]
[1672710870886,67.68,11.096,11.079,151.7207]
[1672710871098,67.68,11.096,11.081,40.0]
[1672710871294,67.68,11.096,11.081,107.77]
[1672710871510,67.67,11.098,11.081,107.77]
[1672710871722,67.66,11.099,11.082,111.7207]
[1672710871921,67.65,11.1,11.083,107.76]
[1672710872129,67.65,11.1,11.085,40.0]
[1672710872349,67.65,11.101,11.085,107.75]
[1672710872558,67.65,11.101,11.086,111.7207]
[1672710872972,67.64,11.102,11.087,40.0]
[1672710873183,67.64,11.102,11.087,158.0824]
[1672710873603,67.64,11.103,11.087,158.0824]
[1672710873808,67.63,11.104,11.089,40.0]
[1672710874040,67.63,11.104,11.09,118.0824]
[1672710874228,67.62,11.105,11.091,40.0]
[1672710874983,67.58,11.112,11.092,67.7]
[1672710875204,7.97600155,11.109,11.093,40.0]
[1672710875383,67.61,11.108,11.093,40.0]
[1672710875591,67.59,11.11,11.093,40.0]
[1672710875825,67.59,11.11,11.093,225.7824]
[1672710876037,67.59,11.11,11.093,158.0824]
[1672710876445,67.59,11.111,11.094,67.69]
[1672710876656,67.59,11.111,11.095,40.0]
[1672710878034,67.58,11.113,11.096,67.68]
[1672710878249,67.58,11.113,11.097,40.0]
[1672710878982,67.57,11.114,11.099,40.0]
[1672710879191,67.93802442,11.117,11.099,40.0]
[1672710879396,40.0,11.115,11.099,40.0]
[1672710879611,67.57,11.114,11.099,40.0]
[1672710879832,67.56,11.115,11.099,40.0]
[1672710881499,67.54,11.119,11.101,40.0]
[1672710881710,67.54,11.119,11.103,40.0]
[1672710882262,127.50202287,11.119,11.103,40.0]
[1672710882453,127.50202287,11.119,11.103,150.6763]
[1672710882786,40.0,11.118,11.103,150.6763]
[1672710882977,67.55,11.117,11.103,150.6763]
[1672710884860,154.0934,11.123,11.104,67.63]
[1672710884861,67.52,11.122,11.104,67.63]
[1672710885076,67.52,11.122,11.105,40.0]
[1672710885601,67.52,11.122,11.105,154.3235]
[1672710888450,67.52,11.122,11.106,67.62]
[1672710888655,67.52,11.122,11.107,40.0]
[1672710888869,67.52,11.122,11.109,40.0]
[1672710890974,40.0,11.121,11.108,117.4233]
[1672710891186,67.53,11.12,11.108,117.4233]
[1672710891399,40.0,11.119,11.108,117.4233]
[1672710891613,67.54,11.118,11.108,117.4233]
[1672710892027,67.54,11.118,11.101,107.65]
[1672710892028,40.0,11.117,11.101,107.65]
[1672710892230,67.56,11.116,11.101,40.0]
[1672710892466,40.0,11.115,11.101,40.0]
[1672710892662,67.57,11.114,11.101,40.0]
[1672710893199,67.56,11.115,11.101,40.0]
[1672710893717,6.2,11.11,11.099,150.1087]
[1672710893932,67.6,11.109,11.099,110.1087]
[1672710894544,67.6,11.109,11.097,40.0]
[1672710894980,67.6,11.109,11.086,67.74]
[1672710895182,6.21,11.1,11.088,110.1087]
[1672710895385,67.66,11.099,11.088,110.1087]
[1672710896539,6.28,11.11,11.09,6.24]
[1672710896747,6.28,11.11,11.091,40.0]
[1672710897167,40.0,11.108,11.091,40.0]
[1672710897379,67.61,11.107,11.091,159.6586]
[1672710897820,6.26,11.1,11.091,119.6586]
[1672710898037,40.0,11.098,11.088,67.73]
[1672710898215,67.67,11.097,11.086,40.0]
[1672710899375,67.66,11.099,11.086,40.0]
[1672710899591,67.64,11.102,11.086,40.0]
[1672710899809,31.32,11.11,11.087,15.80730786]
[1672710899810,114.4508,11.104,11.087,15.80730786]
[1672710900042,6.28,11.11,11.089,40.0]
[1672710900357,6.28,11.11,11.091,40.0]
[1672710900559,67.61,11.107,11.092,67.7]
[1672710900765,67.61,11.107,11.093,40.0]
[1672710901510,47.82399845,11.106,11.092,117.4195]
[1672710901835,40.0,11.104,11.092,117.4195]
[1672710902141,67.64,11.103,11.092,117.4195]
[1672710902457,67.64,11.103,11.091,40.0]
[1672710903189,67.64,11.103,11.089,40.0]
[1672710903383,6.23,11.1,11.088,112.9627]
[1672710903596,67.66,11.099,11.088,112.9627]
[1672710903817,40.0,11.098,11.082,40.0]
[1672710904007,67.67,11.097,11.08,67.78]
[1672710904221,67.67,11.097,11.077,220.7527]
[1672710904432,40.0,11.096,11.077,152.9627]
[1672710904664,40.0,11.094,11.077,152.9627]
[1672710904873,67.7,11.093,11.077,152.9627]
[1672710905593,67.2,11.093,11.077,152.9627]
[1672710907817,6.27,11.1,11.078,40.0]
[1672710908134,6.27,11.1,11.081,40.0]
[1672710908323,47.82399845,11.099,11.081,40.0]
[1672710908527,40.0,11.097,11.081,40.0]
[1672710908738,67.68,11.096,11.081,40.0]
[1672710908949,40.0,11.095,11.081,40.0]
[1672710909182,67.69,11.094,11.081,40.0]
[1672710909387,40.0,11.093,11.081,40.0]
[1672710909599,67.7,11.092,11.081,40.0]
[1672710910433,67.7,11.092,11.078,154.4798]
[1672710910651,40.0,11.091,11.078,154.4798]
[1672710910861,67.72,11.09,11.078,154.4798]
[1672710912456,67.72,11.09,11.078,114.4798]
[1672710912851,67.72,11.09,11.079,40.0]
[1672710914969,67.7,11.092,11.079,40.0]
[1672710915796,67.7,11.092,11.078,114.4798]
[1672710916020,6.2,11.09,11.074,0.3588689]
[1672710916233,67.72,11.089,11.074,0.3588689]
[1672710916425,40.0,11.088,11.074,0.3588689]
[1672710916761,40.0,11.086,11.074,0.3588689]
[1672710916960,40.0,11.084,11.074,0.3588689]
[1672710917164,67.76,11.083,11.074,0.3588689]
[1672710917914,40.0,11.082,11.074,0.3588689]
[1672710918225,6.23,11.08,11.074,0.3588689]
[1672710918460,40.0,11.078,11.074,0.3588689]
[1672710918629,40.0,11.078,11.056,182.9187]
[1672710918630,40.0,11.076,11.056,182.9187]
[1672710918838,67.81,11.075,11.056,114.9987]
[1672710919493,6.27,11.08,11.06,6.26]
[1672710919691,31.3,11.09,11.062,27.5]
[1672710919903,31.3,11.09,11.063,67.88]
[1672710920102,67.77,11.081,11.064,40.0]
[1672710920308,67.77,11.081,11.065,67.87]
[1672710920551,67.76,11.083,11.066,40.0]
[1672710920751,67.76,11.083,11.066,159.2208]
[1672710921683,40.0,11.082,11.066,159.2208]
[1672710921887,67.77,11.081,11.066,159.2208]
[1672710922962,31.22,11.08,11.061,56.69065]
[1672710923159,107.78,11.079,11.061,107.89]
[1672710923808,107.78,11.079,11.062,40.0]
[1672710924526,107.78,11.079,11.062,158.8063]
[1672710924750,107.78,11.079,11.063,67.88]
[1672710925058,107.78,11.079,11.057,40.0]
[1672710925248,107.78,11.079,11.058,119.6109]
[1672710925677,158.22931012,11.079,11.058,119.6109]
[1672710925891,277.97011012,11.079,11.06,40.0]
[1672710926325,277.97011012,11.079,11.058,119.6109]
[1672710927158,227.5208,11.079,11.06,40.0]
[1672710927590,107.78,11.079,11.06,40.0]
[1672710927777,107.78,11.079,11.062,40.0]
[1672710928621,107.78,11.079,11.062,149.1333]
[1672710929166,107.78,11.079,11.062,40.0]
[1672710929376,158.22931012,11.079,11.062,149.1333]
[1672710929563,158.22931012,11.079,11.062,36.0]
[1672710929783,107.78,11.079,11.062,36.0]
[1672710930214,158.22931012,11.079,11.062,36.0]
[1672710932103,158.22931012,11.079,11.059,182.866168]
[1672710932311,276.40831012,11.079,11.059,142.866168]
[1672710932857,276.40831012,11.079,11.059,109.1333]
[1672710933045,6.21,11.07,11.06,112.2605]
[1672710933254,67.84,11.069,11.06,112.2605]
[1672710933784,40.0,11.075,11.054,67.94]
[1672710934008,40.0,11.073,11.058,36.200912]
[1672710934219,67.83,11.072,11.059,40.0]
[1672710934434,67.82,11.073,11.059,152.2605]
[1672710936205,40.0,11.072,11.059,152.2605]
[1672710936413,67.83,11.071,11.059,152.2605]
[1672710937492,46.23,11.07,11.059,112.2605]
[1672710937713,67.84,11.069,11.059,112.2605]
[1672710937900,40.0,11.068,11.059,112.2605]
[1672710938114,67.86,11.067,11.058,36.200912]
[1672710938444,40.0,11.066,11.058,31.200912]
[1672710938657,67.87,11.065,11.058,31.200912]
[1672710939075,40.0,11.07,11.058,31.200912]
[1672710939680,67.84,11.069,11.058,31.200912]
[1672710939920,40.0,11.068,11.058,31.200912]
[1672710940122,67.86,11.067,11.058,31.200912]
[1672710940546,67.36,11.067,11.058,31.200912]
[1672710941479,67.84,11.069,11.058,31.200912]
[1672710943065,40.0,11.068,11.058,31.200912]
[1672710944016,67.84,11.069,11.058,31.200912]
[1672710944337,118.9712,11.073,11.059,40.0]
[1672710944766,67.83,11.072,11.059,40.0]
[1672710945166,57.61985012,11.078,11.061,40.0]
[1672710945388,40.0,11.08,11.061,40.0]
[1672710945808,40.0,11.08,11.063,40.0]
[1672710945809,67.79,11.078,11.063,40.0]
[1672710945999,151.3012,11.083,11.064,115.3349]
[1672710946000,67.78,11.079,11.064,115.3349]
[1672710946321,40.0,11.081,11.065,40.0]
[1672710946515,40.0,11.079,11.065,115.3349]
[1672710946725,67.79,11.078,11.065,115.3349]
[1672710946935,40.0,11.077,11.056,67.92]
[1672710947145,40.0,11.075,11.061,40.0]
[1672710947360,67.81,11.074,11.061,40.0]
[1672710947593,40.0,11.073,11.061,40.0]
[1672710947906,67.83,11.072,11.061,40.0]
[1672710950535,40.0,11.071,11.06,115.3349]
[1672710950728,67.84,11.07,11.061,40.0]
[1672710952938,67.83,11.072,11.061,40.0]
[1672710953800,40.0,11.071,11.06,115.3349]
[1672710954009,67.84,11.07,11.06,115.3349]
[1672710954208,40.0,11.069,11.06,115.3349]
[1672710954420,67.85,11.068,11.06,115.3349]
[1672710955052,67.85,11.068,11.053,40.0]
[1672710955053,40.0,11.067,11.053,40.0]
[1672710955268,67.86,11.066,11.053,40.0]
[1672710955581,40.0,11.065,11.053,40.0]
[1672710955799,40.0,11.063,11.053,40.0]
[1672710956198,67.89,11.062,11.053,40.0]